bitfinex/quotes_BTCUSD_20250102
["timestamp","ask_amount","ask_price","bid_price","bid_amount"]
[1735818664609,0.68083326,96893.0,96892.0,0.09448691]
[1735818664816,0.68083326,96893.0,96892.0,0.05320091]
[1735818665837,0.556628,96886.0,96885.0,9.1e-07]
[1735818666023,0.66061432,96886.0,96885.0,9.1e-07]
[1735818666221,0.66061432,96886.0,96825.0,0.1130399]
[1735818666222,0.3502,96874.0,96873.0,3e-07]
[1735818666481,0.45418632,96874.0,96873.0,3e-07]
[1735818666680,0.5567,96852.0,96851.0,0.0779]
[1735818666886,0.66797599,96852.0,96851.0,0.0779]
[1735818667962,0.66797599,96852.0,96851.0,0.07799153]
[1735818668186,0.68415059,96852.0,96851.0,0.07799153]
[1735818668620,0.68515059,96852.0,96851.0,0.08699153]
[1735818668831,0.69420833,96852.0,96851.0,0.08699153]
[1735818669121,0.69320833,96852.0,96851.0,0.07799153]
[1735818669336,0.79451305,96852.0,96851.0,0.08499153]
[1735818669527,1.02675132,96852.0,96851.0,0.08499153]
[1735818669666,0.9264466,96852.0,96851.0,0.08499153]
[1735818670291,0.69420833,96852.0,96851.0,0.08499153]
[1735818670496,0.69429389,96852.0,96851.0,0.08499153]
[1735818670731,0.69529389,96852.0,96851.0,0.08499153]
[1735818671264,0.67911929,96852.0,96851.0,0.08499153]
[1735818672036,0.73928214,96852.0,96851.0,0.08499153]
[1735818672858,0.67911929,96852.0,96851.0,0.08516233]
[1735818674483,0.69529398,96852.0,96851.0,0.08516233]
[1735818678969,0.69529398,96852.0,96851.0,3.3e-07]
[1735818679086,0.2002,96849.0,96848.0,1.3e-07]
[1735818679291,0.2502,96846.0,96845.0,0.05714813]
[1735818679500,0.35418632,96846.0,96845.0,0.05714813]
[1735818679704,0.3614953,96846.0,96845.0,0.05714813]
[1735818679903,0.4614953,96846.0,96845.0,0.05714813]
[1735818680108,0.4614953,96846.0,96845.0,0.03649613]
[1735818680535,0.55431982,96846.0,96845.0,0.03649613]
[1735818680831,0.2502,96844.0,96843.0,9.3e-07]
[1735818681034,0.456728,96839.0,96838.0,7.3e-07]
[1735818681218,0.56071432,96839.0,96838.0,7.3e-07]
[1735818681425,0.0002,96813.0,96812.0,0.0001708]
[1735818681565,0.356783,96813.0,96812.0,0.00066474]
[1735818681770,0.36387437,96813.0,96812.0,0.00066474]
[1735818682894,0.36487437,96813.0,96812.0,0.00766474]
[1735818683687,0.36487437,96813.0,96812.0,0.08656474]
[1735818684091,0.36487437,96813.0,96812.0,0.08756474]
[1735818684275,0.38105315,96813.0,96812.0,0.08756474]
[1735818684468,0.38105315,96813.0,96812.0,0.13496474]
[1735818688861,0.36487437,96813.0,96812.0,0.13496474]
[1735818693438,0.36487437,96813.0,96812.0,0.00471507]
[1735818694417,0.36487437,96813.0,96812.0,0.08121507]
[1735818695728,0.38105362,96813.0,96812.0,0.08121507]
[1735818697139,0.38105362,96813.0,96812.0,0.08138607]
[1735818701791,0.390114,96813.0,96812.0,0.08138607]
[1735818702341,0.390114,96813.0,96812.0,0.00488607]
[1735818702950,0.37393475,96813.0,96812.0,0.00488607]
[1735818704529,0.46346469,96813.0,96812.0,0.00488607]
[1735818704713,0.37393475,96813.0,96812.0,0.00488607]
[1735818708095,0.36487437,96813.0,96812.0,0.00488607]
[1735818714808,0.3810538,96813.0,96812.0,0.00488607]
[1735818718841,0.36487437,96813.0,96812.0,0.00488607]
[1735818720988,0.36495987,96813.0,96812.0,0.00488607]
[1735818722997,0.37402144,96813.0,96812.0,0.00488607]
[1735818723405,0.55941992,96813.0,96812.0,0.00488607]
[1735818724044,0.37402144,96813.0,96812.0,0.00488607]
[1735818727057,0.37402144,96813.0,96791.0,0.041385]
[1735818727058,0.0002,96792.0,96791.0,0.041385]
[1735818727267,0.356592,96809.0,96777.0,0.09273243]
[1735818727268,0.0002,96778.0,96777.0,0.09273243]
[1735818727484,0.356858,96778.0,96777.0,0.09273243]
[1735818727927,0.36386009,96778.0,96777.0,0.09273243]
[1735818728350,0.37292704,96778.0,96777.0,0.0001708]
[1735818728549,0.66645023,96778.0,96777.0,0.0091708]
[1735818728787,0.77476507,96778.0,96777.0,0.00022005]
[1735818733172,0.399434,96778.0,96777.0,0.00922005]
[1735818733572,0.69122201,96778.0,96777.0,5e-08]
[1735818733750,0.76385506,96778.0,96777.0,5e-08]
[1735818733978,0.77292456,96778.0,96777.0,0.00017105]
[1735818734109,0.86564652,96778.0,96777.0,0.00017105]
[1735818734314,0.7616602,96778.0,96777.0,0.00017105]
[1735818734814,0.6799602,96778.0,96777.0,0.00017105]
[1735818735023,0.72632118,96778.0,96777.0,0.00017105]
[1735818736247,0.77268217,96778.0,96777.0,0.00017105]
[1735818736465,0.66869585,96778.0,96777.0,0.00017105]
[1735818736783,0.68488306,96778.0,96777.0,0.00017105]
[1735818737484,0.59199244,96778.0,96777.0,0.00017105]
[1735818738190,0.0002,96757.0,96756.0,0.02157405]
[1735818738495,0.356903,96757.0,96756.0,0.02163505]
[1735818738920,0.37906874,96757.0,96756.0,0.02163505]
[1735818739097,0.37906874,96757.0,96756.0,6.1e-05]
[1735818739502,0.37906874,96757.0,96756.0,0.004061]
[1735818739901,0.37906874,96757.0,96756.0,6.1e-05]
[1735818740219,0.387398,96757.0,96756.0,0.002061]
[1735818740944,0.39746872,96757.0,96756.0,0.002061]
[1735818741431,0.39846872,96757.0,96756.0,0.002061]
[1735818742183,0.382281,96757.0,96756.0,0.002061]
[1735818745385,0.41603425,96757.0,96756.0,0.002061]
[1735818746021,0.382281,96757.0,96756.0,0.002061]
[1735818746197,0.39847042,96757.0,96756.0,0.0022318]
[1735818749969,0.5933921,96757.0,96756.0,0.0022318]
[1735818754190,0.58505676,96757.0,96756.0,0.0022318]
[1735818755671,0.59339829,96757.0,96756.0,0.0022318]
[1735818758509,0.59348379,96757.0,96756.0,0.0022318]
[1735818758687,0.57729437,96757.0,96756.0,0.0022318]
[1735818760874,0.56895284,96757.0,96756.0,0.0022318]
[1735818761317,0.36496652,96757.0,96756.0,0.0022318]
[1735818761515,0.36496652,96757.0,96756.0,0.0773318]
[1735818763036,0.15806352,96757.0,96756.0,0.0773318]
[1735818763255,0.00806352,96757.0,96756.0,0.20431812]
[1735818763459,0.0020855,96757.0,96756.0,0.20431812]
[1735818763800,8.55e-05,96757.0,96756.0,0.20431812]
[1735818764004,0.0010855,96757.0,96756.0,0.20731812]
[1735818764203,0.0010855,96757.0,96756.0,0.20531812]
[1735818764455,0.0010855,96757.0,96756.0,0.20631812]
[1735818764623,0.0020855,96757.0,96756.0,0.20931812]
[1735818765021,0.0010855,96757.0,96756.0,0.20231812]
[1735818765227,0.0020855,96757.0,96756.0,0.25141812]
[1735818765452,0.0020855,96757.0,96756.0,0.25741812]
[1735818769292,0.0020855,96757.0,96756.0,0.77417812]
[1735818769505,0.0022855,96757.0,96756.0,0.75117812]
[1735818769740,0.0020855,96757.0,96756.0,0.75117812]
[1735818770190,0.0020855,96757.0,96756.0,0.77417812]
[1735818770422,0.0010855,96757.0,96756.0,0.77417812]
[1735818770644,8.55e-05,96757.0,96756.0,0.76517812]
[1735818770864,0.0010855,96757.0,96756.0,0.77317812]
[1735818771080,0.0010855,96757.0,96756.0,0.77017812]
[1735818771492,0.0020855,96757.0,96756.0,0.76817812]
[1735818772204,8.55e-05,96757.0,96756.0,0.77117812]
[1735818773391,8.55e-05,96757.0,96756.0,0.76517812]
[1735818773889,0.0010855,96757.0,96756.0,0.77417812]
[1735818774099,8.55e-05,96757.0,96756.0,0.77117812]
[1735818774300,0.0010855,96757.0,96756.0,0.77417812]
[1735818774558,0.0010855,96757.0,96756.0,0.76817812]
[1735818774793,0.0010855,96757.0,96756.0,0.77017812]
[1735818774990,0.0020855,96757.0,96756.0,0.77317812]
[1735818775139,0.0010855,96757.0,96756.0,0.77317812]
[1735818775344,0.0010855,96757.0,96756.0,0.76517812]
[1735818775547,0.0020855,96757.0,96756.0,0.76817812]
[1735818776740,8.55e-05,96757.0,96756.0,1.26517812]
[1735818776940,8.55e-05,96757.0,96756.0,1.26817812]
[1735818777185,0.0010855,96757.0,96756.0,1.27417812]
[1735818777646,0.0010855,96757.0,96756.0,1.26817812]
[1735818778144,0.0020855,96757.0,96756.0,1.27417812]
[1735818778710,0.2087885,96757.0,96756.0,1.1010918]
[1735818779318,0.21397501,96757.0,96756.0,1.1010918]
[1735818779794,0.00727201,96757.0,96756.0,1.22807812]
[1735818780150,0.0020855,96757.0,96756.0,1.22807812]
[1735818781675,0.0020855,96757.0,96756.0,1.20507812]
[1735818781896,0.2089885,96757.0,96756.0,1.0259918]
[1735818782098,0.21417501,96757.0,96756.0,1.0259918]
[1735818782727,0.36417501,96757.0,96756.0,1.0259918]
[1735818783025,0.36317501,96757.0,96756.0,1.0229918]
[1735818783429,0.36317501,96757.0,96756.0,1.0199918]
[1735818783794,0.36217501,96757.0,96756.0,1.0219918]
[1735818783966,0.36317501,96757.0,96756.0,1.0249918]
[1735818784171,0.36317501,96757.0,96756.0,1.0199918]
[1735818784399,0.36217501,96757.0,96756.0,1.0169918]
[1735818784612,0.36317501,96757.0,96756.0,1.0229918]
[1735818784926,0.36317501,96757.0,96756.0,1.0199918]
[1735818785652,0.36317501,96757.0,96756.0,1.0169918]
[1735818786215,0.36417501,96757.0,96756.0,1.0199918]
[1735818786618,0.36217501,96757.0,96756.0,1.0169918]
[1735818786839,0.36317501,96757.0,96756.0,1.0199918]
[1735818787180,0.36317501,96757.0,96756.0,1.0229918]
[1735818787517,0.36317501,96757.0,96756.0,1.0199918]
[1735818787741,0.36317501,96757.0,96756.0,1.0229918]
[1735818790518,0.36317501,96757.0,96756.0,1.0199918]
[1735818790698,0.36217501,96757.0,96756.0,1.0169918]
[1735818790911,0.36217501,96757.0,96756.0,1.0189918]
[1735818791282,0.36217501,96757.0,96756.0,1.0169918]
[1735818791481,0.36317501,96757.0,96756.0,1.0199918]
[1735818791733,0.36317501,96757.0,96756.0,1.0229918]
[1735818792236,0.37936287,96757.0,96756.0,1.0229918]
[1735818792439,0.36317501,96757.0,96756.0,1.0229918]
[1735818792637,0.36217501,96757.0,96756.0,1.0199918]
[1735818793065,0.36317501,96757.0,96756.0,1.0229918]
[1735818795616,0.37936273,96757.0,96756.0,1.0229918]
[1735818797153,0.37936273,96757.0,96756.0,0.5229918]
[1735818798415,0.36317501,96757.0,96756.0,0.5229918]
[1735818801291,0.37936263,96757.0,96756.0,0.5229918]
[1735818807650,0.36317501,96757.0,96756.0,0.5229918]
[1735818818433,0.37936117,96757.0,96756.0,0.5229918]
[1735818818952,0.36317501,96757.0,96756.0,0.5229918]
[1735818822662,0.00627201,96757.0,96756.0,0.64997812]
[1735818822861,0.00627201,96757.0,96756.0,0.73097812]
[1735818823599,0.00627201,96757.0,96756.0,0.72597812]
[1735818829393,0.00627201,96757.0,96756.0,0.72606362]
[1735818830057,0.0010855,96757.0,96756.0,0.72606362]
[1735818830776,8.55e-05,96757.0,96756.0,0.72306362]
[1735818831132,0.0010855,96757.0,96756.0,0.72606362]
[1735818831335,0.0010855,96757.0,96756.0,0.72306362]
[1735818831735,0.0010855,96757.0,96756.0,1.22606362]
[1735818832033,0.0010855,96757.0,96756.0,1.22306362]
[1735818832255,8.55e-05,96757.0,96756.0,1.22006362]
[1735818832598,0.0010855,96757.0,96756.0,1.22906362]
[1735818832966,0.0010855,96757.0,96756.0,1.23506362]
[1735818856385,0.0010855,96757.0,96756.0,1.23433162]
[1735818872673,0.0010855,96757.0,96756.0,1.32689624]
[1735818873757,0.0010855,96757.0,96756.0,1.32089624]
[1735818873959,8.55e-05,96757.0,96756.0,1.31189624]
[1735818874278,8.55e-05,96757.0,96756.0,1.32089624]
[1735818874279,0.0010855,96757.0,96756.0,1.32089624]
[1735818874627,0.0020855,96757.0,96756.0,1.23533162]
[1735818875038,0.0010855,96757.0,96756.0,1.22633162]
[1735818875920,0.0020855,96757.0,96756.0,1.37417856]
[1735818876464,0.0010855,96757.0,96756.0,1.36717856]
[1735818876897,0.0010855,96757.0,96756.0,1.37217856]
[1735818877164,8.55e-05,96757.0,96756.0,1.70706948]
[1735818877645,0.0010855,96757.0,96756.0,1.71606948]
[1735818877785,0.0010855,96757.0,96756.0,1.70706948]
[1735818877992,0.0020855,96757.0,96756.0,1.23333162]
[1735818878931,8.55e-05,96757.0,96756.0,1.22433162]
[1735818879113,0.0010855,96757.0,96756.0,1.22833162]
[1735818879377,0.0010855,96757.0,96756.0,1.36717856]
[1735818879584,0.0010855,96757.0,96756.0,1.37317856]
[1735818892977,0.0010855,96757.0,96756.0,1.71712293]
[1735818905934,0.0010855,96757.0,96756.0,1.57827599]
[1735818913817,0.0010855,96757.0,96756.0,1.76340524]
[1735818915296,0.0010855,96757.0,96756.0,1.76340524]
[1735818922673,0.0010855,96757.0,96756.0,1.92139685]
[1735818923099,0.0010855,96757.0,96756.0,2.02139685]
[1735818923299,0.0010855,96757.0,96756.0,2.07109685]
[1735818923506,8.55e-05,96757.0,96756.0,1.8769676]
[1735818923950,0.0010855,96757.0,96756.0,1.9857676]
[1735818924186,8.55e-05,96757.0,96756.0,2.00311141]
[1735818924378,8.55e-05,96757.0,96756.0,2.00911141]
[1735818924626,8.55e-05,96757.0,96756.0,2.01811141]
[1735818924627,0.0010855,96757.0,96756.0,2.01811141]
[1735818924838,0.0010855,96757.0,96756.0,2.00311141]
[1735818925047,0.0020855,96757.0,96756.0,2.01211141]
[1735818925875,0.0020855,96757.0,96756.0,2.59948251]
[1735818926289,8.54e-05,96778.0,96770.0,0.023]
[1735818926490,8.54e-05,96778.0,96777.0,0.20518632]
[1735818926872,8.54e-05,96778.0,96777.0,0.93399632]
[1735818927307,8.54e-05,96778.0,96777.0,1.186196]
[1735818927493,8.54e-05,96778.0,96777.0,1.331296]
[1735818927906,8.54e-05,96778.0,96777.0,1.338296]
[1735818928494,8.54e-05,96778.0,96777.0,1.91470948]
[1735818929532,8.54e-05,96778.0,96777.0,1.92070948]
[1735818930051,8.54e-05,96778.0,96777.0,1.88849748]
[1735818930239,8.54e-05,96778.0,96777.0,1.89749748]
[1735818930444,8.54e-05,96778.0,96777.0,1.89049748]
[1735818930847,8.54e-05,96778.0,96777.0,1.70458829]
[1735818931476,8.54e-05,96778.0,96777.0,1.71358829]
[1735818931859,8.54e-05,96778.0,96777.0,1.9457752]
[1735818932701,8.54e-05,96778.0,96777.0,1.9367752]
[1735818932873,8.54e-05,96778.0,96777.0,1.70458829]
[1735818933038,8.54e-05,96778.0,96777.0,1.71358829]
[1735818933495,8.54e-05,96778.0,96777.0,1.69558829]
[1735818933744,8.54e-05,96778.0,96777.0,1.70458829]
[1735818934397,8.54e-05,96778.0,96777.0,0.97908069]
[1735818934832,8.54e-05,96778.0,96777.0,1.01108069]
[1735818935037,8.54e-05,96778.0,96777.0,1.09278069]
[1735818935447,8.54e-05,96778.0,96777.0,1.08378069]
[1735818935610,8.54e-05,96778.0,96777.0,1.09078069]
[1735818936193,8.54e-05,96778.0,96777.0,0.73983632]
[1735818936394,8.54e-05,96778.0,96777.0,0.78021832]
[1735818936814,8.54e-05,96778.0,96777.0,0.78921832]
[1735818936998,8.54e-05,96778.0,96777.0,0.78021832]
[1735818937403,8.54e-05,96778.0,96777.0,0.78921832]
[1735818938976,8.54e-05,96778.0,96777.0,0.70751832]
[1735818949526,3.523e-05,96778.0,96777.0,0.70751832]
[1735818952363,0.0162147,96778.0,96777.0,0.70751832]
[1735818953401,3.523e-05,96778.0,96777.0,0.70751832]
[1735818958581,3.523e-05,96778.0,96777.0,1.20751832]
[1735818962544,3.523e-05,96778.0,96777.0,1.28751832]
[1735818963270,3.523e-05,96778.0,96777.0,1.38031152]
[1735818963486,3.523e-05,96778.0,96777.0,1.37231152]
[1735818964051,3.523e-05,96778.0,96777.0,1.63140596]
[1735818965144,3.523e-05,96778.0,96777.0,1.81721628]
[1735818965503,3.523e-05,96778.0,96777.0,1.73721628]
[1735818965926,3.523e-05,96778.0,96777.0,1.69079833]
[1735818966682,3.523e-05,96778.0,96777.0,1.34791069]
[1735818967371,3.523e-05,96778.0,96777.0,1.34808149]
[1735818967965,3.523e-05,96778.0,96777.0,1.30167666]
[1735818969297,3.523e-05,96778.0,96777.0,1.20868912]
[1735818970155,3.523e-05,96778.0,96777.0,1.55228928]
[1735818973024,0.01621448,96778.0,96777.0,1.71127488]
[1735818973473,3.523e-05,96778.0,96777.0,1.71127488]
[1735818973627,3.523e-05,96778.0,96777.0,1.55228928]
[1735818974888,3.523e-05,96778.0,96777.0,1.63208928]
[1735818980455,0.01621495,96778.0,96777.0,1.63208928]
[1735818982030,3.523e-05,96778.0,96777.0,1.63208928]
[1735818990687,3.523e-05,96778.0,96777.0,2.03477138]
[1735818991095,3.523e-05,96778.0,96777.0,2.21710017]
[1735818991910,8.55e-05,96813.0,96793.0,0.023]
[1735818992114,8.55e-05,96813.0,96801.0,0.206609]
[1735818992423,8.55e-05,96813.0,96803.0,0.206605]
[1735818992621,8.55e-05,96813.0,96804.0,0.10398632]
[1735818993121,0.00057845,96813.0,96804.0,0.62599632]
[1735818993462,0.00057845,96813.0,96808.0,0.09302444]
[1735818993727,0.00057845,96813.0,96809.0,0.10398632]
[1735818994154,0.00057845,96813.0,96809.0,0.62596632]
[1735818994823,0.07795669,96815.0,96809.0,0.62996632]
[1735818996077,0.01617587,96814.0,96809.0,0.62596632]
[1735818996433,0.01617587,96814.0,96809.0,0.63296632]
[1735818997154,0.01617587,96814.0,96809.0,0.62996632]
[1735818997757,0.01617587,96814.0,96809.0,0.62596632]
[1735818997939,0.07775669,96815.0,96809.0,0.62996632]
[1735818998944,0.0805,96823.0,96816.0,0.206575]
[1735818999168,0.0805,96823.0,96817.0,0.10398632]
[1735818999567,0.0805,96823.0,96817.0,0.62592632]
[1735819000374,0.0805,96823.0,96818.0,0.206573]
[1735819000571,0.0805,96823.0,96819.0,0.10398632]
[1735819000935,0.01617487,96823.0,96819.0,0.62591632]
[1735819001728,0.0002855,96831.0,96819.0,0.62591632]
[1735819001922,0.00039239,96831.0,96820.0,0.206568]
[1735819002123,0.00039239,96831.0,96821.0,0.10398632]
[1735819002450,0.00039239,96831.0,96821.0,0.62590632]
[1735819004063,0.00039239,96831.0,96821.0,0.62690632]
[1735819005651,0.00019239,96831.0,96821.0,0.62690632]
[1735819005900,0.00019239,96831.0,96827.0,0.206553]
[1735819006073,0.00019239,96831.0,96829.0,0.284349]
[1735819006429,0.00019239,96831.0,96830.0,0.10398632]
[1735819006819,0.00019239,96831.0,96830.0,0.69565632]
[1735819006992,0.00019239,96831.0,96830.0,0.85210122]
[1735819007198,0.00019239,96831.0,96830.0,0.95210122]
[1735819008606,0.00019239,96831.0,96830.0,0.95810122]
[1735819009609,0.00019239,96831.0,96830.0,0.98610688]
[1735819013395,0.00019239,96831.0,96830.0,0.93930688]
[1735819015219,0.00019239,96831.0,96830.0,1.03910688]
[1735819015360,0.00019239,96831.0,96830.0,1.11630688]
[1735819016427,8.54e-05,96854.0,96833.0,0.1]
[1735819016768,0.00019255,96854.0,96841.0,0.10398632]
[1735819016948,0.00019255,96854.0,96843.0,0.206519]
[1735819017155,0.00019255,96854.0,96844.0,0.10398632]
[1735819017350,0.00019255,96854.0,96845.0,0.206515]
[1735819017558,0.00019255,96854.0,96846.0,0.10398632]
[1735819017933,0.00019255,96854.0,96846.0,0.62576632]
[1735819019026,0.00019255,96854.0,96846.0,0.62676632]
[1735819020736,0.00019255,96854.0,96847.0,0.206511]
[1735819020945,0.00019255,96854.0,96848.0,0.10398632]
[1735819021261,0.00019255,96854.0,96848.0,0.62575632]
[1735819021434,0.00019255,96854.0,96849.0,0.206507]
[1735819021635,0.00019255,96854.0,96850.0,0.10398632]
[1735819021934,0.01616853,96853.0,96850.0,0.10398632]
[1735819022139,0.01616853,96853.0,96850.0,0.62574632]
[1735819024164,0.01616853,96853.0,96850.0,0.62674632]
[1735819024683,0.01616853,96853.0,96851.0,0.5]
[1735819024847,0.01616853,96853.0,96852.0,0.10398632]
[1735819025391,0.01616853,96853.0,96852.0,0.62573632]
[1735819027365,0.01616853,96853.0,96852.0,0.62673632]
[1735819033197,0.01616853,96853.0,96852.0,0.63173632]
[1735819033379,0.01616853,96853.0,96852.0,0.63673632]
[1735819037074,0.01616853,96853.0,96852.0,0.63623632]
[1735819038047,0.01616853,96853.0,96852.0,0.65923632]
[1735819038253,0.00019255,96854.0,96853.0,0.229498]
[1735819038468,0.00019255,96854.0,96853.0,0.85523432]
[1735819039427,0.00019255,96854.0,96853.0,0.86023432]
[1735819039878,0.00019255,96854.0,96853.0,0.86623432]
[1735819042231,0.00019255,96854.0,96853.0,0.63673632]
[1735819043184,0.01636025,96854.0,96853.0,0.63673632]
[1735819046516,0.00019255,96854.0,96853.0,0.63673632]
[1735819050198,0.01636027,96854.0,96853.0,0.63673632]
[1735819054422,0.01636027,96854.0,96853.0,1.13673632]
[1735819054822,0.01636027,96854.0,96853.0,1.03275]
[1735819054823,0.15311899,96854.0,96853.0,1.03275]
[1735819055066,0.15432684,96854.0,96853.0,1.03275]
[1735819055387,0.14623819,96854.0,96853.0,1.03275]
[1735819055792,0.14623819,96854.0,96853.0,1.02775]
[1735819055793,0.14446027,96854.0,96853.0,1.02775]
[1735819056246,0.14446027,96854.0,96853.0,1.02475]
[1735819056472,0.14446027,96854.0,96853.0,1.02675]
[1735819057631,0.14446027,96854.0,96853.0,1.02375]
[1735819057836,0.14446027,96854.0,96853.0,1.02175]
[1735819057949,0.14446027,96854.0,96853.0,1.02575]
[1735819058559,0.12829255,96854.0,96853.0,1.02275]
[1735819058763,0.12829255,96854.0,96853.0,1.02575]
[1735819060580,0.12829255,96854.0,96853.0,1.02275]
[1735819060799,0.1295004,96854.0,96853.0,1.02175]
[1735819061005,0.1295004,96854.0,96853.0,1.02575]
[1735819061604,0.1295004,96854.0,96853.0,1.02275]
[1735819061808,0.1295004,96854.0,96853.0,1.02575]
[1735819062275,0.1295004,96854.0,96853.0,1.02275]
[1735819062584,0.1295004,96854.0,96853.0,1.02375]
[1735819063310,0.14567056,96854.0,96853.0,1.02375]
[1735819064287,0.14567056,96854.0,96853.0,1.02175]
[1735819064767,0.14567056,96854.0,96853.0,1.02375]
[1735819069234,0.1295004,96854.0,96853.0,1.02375]
[1735819069944,0.12829255,96854.0,96853.0,1.02375]
[1735819070615,0.12829255,96854.0,96853.0,1.02175]
[1735819071146,0.12829255,96854.0,96853.0,1.02375]
[1735819071634,0.12829255,96854.0,96853.0,1.02175]
[1735819072066,0.12829255,96854.0,96853.0,1.02375]
[1735819073555,0.14446285,96854.0,96853.0,1.02375]
[1735819075429,0.01656285,96854.0,96853.0,1.02375]
[1735819076539,0.01656285,96854.0,96853.0,1.02175]
[1735819076706,0.01656285,96854.0,96853.0,1.02375]
[1735819077069,0.01656285,96854.0,96853.0,1.02175]
[1735819077474,0.01656285,96854.0,96853.0,1.02375]
[1735819078360,0.01656285,96854.0,96853.0,1.02175]
[1735819078577,0.00039255,96854.0,96853.0,1.02175]
[1735819080022,0.00039255,96854.0,96853.0,1.02375]
[1735819080435,0.00039255,96854.0,96853.0,1.02175]
[1735819080851,0.00039255,96854.0,96853.0,1.02375]
[1735819082776,0.01656243,96854.0,96853.0,1.02375]
[1735819082978,0.01656243,96854.0,96853.0,1.02175]
[1735819083353,0.01656243,96854.0,96853.0,1.02375]
[1735819083828,0.01656243,96854.0,96853.0,1.02175]
[1735819084242,0.01656243,96854.0,96853.0,1.02375]
[1735819084467,0.01656243,96854.0,96853.0,1.02575]
[1735819084644,0.01656243,96854.0,96853.0,1.02375]
[1735819085671,0.01636243,96854.0,96853.0,1.12773632]
[1735819085878,0.00019255,96854.0,96853.0,1.20983632]
[1735819086170,0.00019255,96854.0,96853.0,1.21283632]
[1735819086541,0.00019255,96854.0,96853.0,1.20983632]
[1735819086717,0.00019255,96854.0,96853.0,1.20783632]
[1735819086917,0.00019255,96854.0,96853.0,1.21883632]
[1735819087880,0.00019255,96854.0,96853.0,1.20783632]
[1735819088080,0.00019255,96854.0,96853.0,1.21583632]
[1735819088684,0.00019255,96854.0,96853.0,1.22183632]
[1735819092249,0.01636111,96854.0,96853.0,1.22183632]
[1735819094397,0.01636111,96854.0,96853.0,1.20783632]
[1735819094600,0.01636111,96854.0,96853.0,1.21383632]
[1735819094803,0.01636111,96854.0,96853.0,1.22183632]
[1735819095404,0.00019255,96854.0,96853.0,1.22183632]
[1735819102203,0.01636075,96854.0,96853.0,1.22183632]
[1735819103077,0.00019255,96854.0,96853.0,1.22183632]
[1735819104788,0.01636073,96854.0,96853.0,1.22183632]
[1735819106710,0.00019255,96854.0,96853.0,1.22183632]
[1735819108309,0.01636082,96854.0,96853.0,1.22183632]
[1735819111976,0.00019255,96854.0,96853.0,1.22183632]
[1735819115569,0.00019255,96854.0,96853.0,1.24483632]
[1735819122548,0.01636021,96854.0,96853.0,1.13973632]
[1735819122996,0.00019255,96854.0,96853.0,1.13973632]
[1735819123202,0.01636093,96854.0,96853.0,1.13973632]
[1735819123417,0.01656093,96854.0,96853.0,1.13973632]
[1735819124566,0.00039255,96854.0,96853.0,1.13973632]
[1735819127613,0.01656187,96854.0,96853.0,1.13973632]
[1735819129636,0.00039255,96854.0,96853.0,1.13973632]
[1735819134199,0.01656193,96854.0,96853.0,1.13973632]
[1735819138061,0.00039255,96854.0,96853.0,1.13973632]
[1735819145604,0.01656193,96854.0,96853.0,1.13973632]
[1735819145810,0.00039255,96854.0,96853.0,1.13973632]
[1735819153047,0.00019255,96854.0,96853.0,1.13973632]
[1735819155912,0.01636166,96854.0,96853.0,1.13973632]
[1735819167974,0.01656166,96854.0,96853.0,1.13973632]
[1735819185265,0.00039255,96854.0,96853.0,1.13973632]
[1735819186965,0.00019255,96854.0,96853.0,1.13973632]
[1735819189655,0.01636155,96854.0,96853.0,1.13973632]
[1735819193872,0.01636155,96854.0,96853.0,1.21483632]
[1735819196088,0.00019255,96854.0,96853.0,1.21483632]
[1735819200501,0.00019255,96854.0,96853.0,1.26033632]
[1735819200674,0.00019255,96854.0,96853.0,1.66325912]
[1735819201658,0.00019255,96854.0,96853.0,1.65725912]
[1735819201843,0.00019255,96854.0,96853.0,1.68153677]
[1735819201988,0.00019255,96854.0,96853.0,1.69653677]
[1735819202204,0.00019255,96854.0,96853.0,2.06293302]
[1735819202388,8.55e-05,96873.0,96872.0,0.206458]
[1735819202602,8.55e-05,96873.0,96872.0,0.43594432]
[1735819202802,8.55e-05,96873.0,96872.0,0.95759432]
[1735819203607,8.55e-05,96873.0,96872.0,0.96159432]
[1735819203986,0.0002855,96873.0,96872.0,0.52565]
[1735819204178,0.0002855,96873.0,96872.0,1.00838231]
[1735819204669,0.0002855,96873.0,96872.0,1.50838231]
[1735819204883,8.55e-05,96873.0,96872.0,1.60836863]
[1735819205088,8.55e-05,96873.0,96872.0,1.12563632]
[1735819205294,8.55e-05,96873.0,96872.0,1.13463632]
[1735819205519,0.0002855,96873.0,96872.0,1.13263632]
[1735819205739,0.0002855,96873.0,96872.0,1.12563632]
[1735819206156,8.55e-05,96873.0,96872.0,1.13063632]
[1735819206330,8.55e-05,96873.0,96872.0,1.13463632]
[1735819206537,8.55e-05,96873.0,96872.0,1.12963632]
[1735819208100,8.55e-05,96873.0,96872.0,1.13463632]
[1735819208220,0.0203855,96873.0,96872.0,1.13063632]
[1735819208641,0.0203855,96873.0,96872.0,1.13563632]
[1735819208844,0.0203855,96873.0,96872.0,1.13063632]
[1735819209046,0.0203855,96873.0,96872.0,1.13563632]
[1735819210300,0.0203855,96873.0,96872.0,1.21533632]
[1735819210925,0.0203855,96873.0,96872.0,1.21033632]
[1735819211285,0.0203855,96873.0,96872.0,1.26123632]
[1735819211618,0.0203855,96873.0,96872.0,1.26323632]
[1735819212057,0.0203855,96873.0,96872.0,1.26923632]
[1735819212506,0.0203855,96873.0,96872.0,1.25523632]
[1735819212652,0.0203855,96873.0,96872.0,1.28723632]
[1735819212856,0.0203855,96873.0,96872.0,1.5442238]
[1735819213260,0.0203855,96873.0,96872.0,1.27123632]
[1735819214032,0.0203855,96873.0,96872.0,1.26423632]
[1735819214383,0.0203855,96873.0,96872.0,1.26223632]
[1735819214563,0.0365501,96873.0,96872.0,1.27123632]
[1735819214763,0.0365501,96873.0,96872.0,1.26423632]
[1735819214970,0.0365501,96873.0,96872.0,1.25523632]
[1735819215175,0.0365501,96873.0,96872.0,1.27123632]
[1735819215576,0.0365501,96873.0,96872.0,1.27073632]
[1735819215927,0.0365501,96873.0,96872.0,1.29373632]
[1735819216714,0.0365501,96873.0,96872.0,1.39353632]
[1735819216962,0.0365501,96873.0,96872.0,1.44908057]
[1735819217342,0.0365501,96873.0,96872.0,1.27073632]
[1735819217687,0.0365501,96873.0,96872.0,1.26373632]
[1735819217925,0.0365501,96873.0,96872.0,1.26173632]
[1735819218409,0.0328501,96873.0,96872.0,1.26373632]
[1735819218559,0.0328501,96873.0,96872.0,1.26173632]
[1735819218784,0.0328501,96873.0,96872.0,1.27073632]
[1735819220009,0.0161646,96873.0,96872.0,1.14113632]
[1735819220297,0.0163646,96873.0,96872.0,1.14130712]
[1735819220498,0.0002,96873.0,96872.0,1.0373208]
[1735819220733,0.0002,96873.0,96872.0,1.0303208]
[1735819221144,0.0002854,96873.0,96872.0,1.0263208]
[1735819221321,0.0002854,96873.0,96872.0,1.0273208]
[1735819221505,0.0002854,96873.0,96872.0,1.0223208]
[1735819221701,8.54e-05,96873.0,96872.0,1.0213208]
[1735819221909,8.54e-05,96873.0,96872.0,1.12830712]
[1735819223123,8.54e-05,96873.0,96872.0,1.13030712]
[1735819223322,8.54e-05,96873.0,96872.0,1.13230712]
[1735819223759,0.01625001,96873.0,96872.0,1.13230712]